Cogmind - Beta 16 @@@ ROGUE MODE // 2025.11.02 @ 03:46:41 Player: Red Box Result: Destroyed by UK-V1H(R) with Subdweller Machine Gun Performance ------------- Evolutions (0) 0 Regions Visited (2) 400 Robots Destroyed (39) 195 Value Destroyed (1060) 1060 Prototype IDs (14) 280 Alien Tech Used (0) 0 Bonus (0) 0 TOTAL SCORE: 1935 Bonus ------- None Cogmind --------- Core Integrity 0/250 Matter 68/300 Energy 66/100 System Corruption 0% Temperature Cool (0) Movement Rolling (130) Ox2 Location -10/Subcaves Parts ------- > --- POWER (1) -------- (None) > --- PROPULSION (2) --- Light Treads Subdweller Monowheel > --- UTILITY (2) ------ High-capacity Storage Unit > --- WEAPON (2) ------- EM Pulse Gun Barrage Gun > --- INVENTORY (20) --- Subdweller Optics Gun Armor Subdweller Laser Autobeam Subdweller Shrapnel Launcher SUBCON Basin (Full) Peak State ------------ > --- POWER ------------ (None) > --- PROPULSION ------- Light Treads Subdweller Monowheel > --- UTILITY ---------- High-capacity Storage Unit Subdweller Optics > --- WEAPON ----------- Barrage Gun Subdweller Shrapnel Launcher > --- INVENTORY -------- Gun Armor EM Pulse Gun Autobeam SUBCON Basin [Rating: 30] Favorites ----------- Power Ion Engine Engine Ion Engine Propulsion Aluminum Leg Treads Light Treads Leg Aluminum Leg Wheel Wheel Utility Targeting Computer Device Heat Sink Storage Medium Storage Unit Processor Targeting Computer Protection Light Armor Plating Weapon EM Pulse Gun Energy Gun EM Pulse Gun Energy Cannon Beam Cannon Ballistic Gun Assault Rifle Ballistic Cannon Light Cannon Launcher Grenade Launcher Build | -11 -10 -10 ------- Run | Yrd Mat Sub Slots Evolved . | . . . Power . | . . . Propulsion . | . . . Utility . | . . . Weapon . | . . . Parts Attached 33 | 7 10 16 Power 5 | 1 1 3 Engine 5 | 1 1 3 Core . | . . . Reactor . | . . . Propulsion 8 | 2 2 4 Treads 1 | . . 1 Leg 4 | 2 2 . Wheel 3 | . . 3 Hover . | . . . Flight . | . . . Utility 10 | 2 5 3 Device 3 | 1 1 1 Storage 5 | 1 3 1 Processor 1 | . 1 . Hackware . | . . . Protection 1 | . . 1 Artifact . | . . . Weapon 10 | 2 2 6 Energy Gun 3 | 1 2 . Energy Cannon 1 | . . 1 Ballistic Gun 3 | 1 . 2 Ballistic Cannon 1 | . . 1 Launcher 2 | . . 2 Special Weapon . | . . . Impact Weapon . | . . . Slashing Weapon . | . . . Piercing Weapon . | . . . Special Melee Weapon . | . . . Unidentified Prototypes . | . . . Parts Lost 9 | . 2 7 Power 2 | . . 2 Propulsion 1 | . . 1 Utility 3 | . 1 2 Weapon 3 | . 1 2 Highest Loss Streak 4 | . 1 4 To Critical Strikes . | . . . Average Backups 8 | 3 9 8 Power . | . . . Propulsion 3 | 3 5 2 Utility 1 | . 1 1 Weapon 3 | . 2 3 Tool/Special . | . . . Unused Backups 14 | . 2 12 Power . | . . . Propulsion 5 | . 1 4 Utility 5 | . 1 4 Weapon 4 | . . 4 Tool/Special . | . . . Average Slot Usage (%) 97 | . 98 96 Engine 12 | . 14 10 Treads 1 | . . 3 Leg 18 | . 28 8 Wheel 7 | . . 15 Device 4 | . 6 2 Storage 14 | . 14 14 Processor 6 | . 7 5 Protection 2 | . . 5 Energy Gun 8 | . 15 1 Energy Cannon 3 | . . 6 Ballistic Gun 7 | . 11 4 Ballistic Cannon 5 | . . 10 Launcher 2 | . . 5 Peak Build Rating 30 | 9 10 30 Average Rating 13 | 4 7 20 On Entrance 5 | . 9 8 Avg Prop Armor Cover (%) 12 | . . 12 Naked Turns . | . . . Heaviest Build 58 | 15 30 58 Greatest Support 20 | 20 20 20 Greatest Overweight (x) 5 | 1 1 5 Average Overweight (x) 1 | . . 2 Largest Inventory Capacity 20 | 8 15 20 Average Capacity 14 | 7 10 19 Most Carried 20 | 6 10 20 Average Carried 13 | 4 9 18 Final Capacity 20 | 8 10 20 Final Carried 20 | 6 10 20 Class Distribution -------------------- 92% | Mutant 7% | Scavenger-Mutant Dominant Class ---------------- Mutant | -10/Materials Mutant | -10/Subcaves Resources | -11 -10 -10 ----------- Run | Yrd Mat Sub Matter Collected 928 | 236 204 488 Remotely . | . . . Salvage Created 1064 | 24 680 360 Parts 75 | 3 44 28 Haulers Intercepted 2 | . 2 . Recyclers Shooed . | . . . Parts Field Recycled . | . . . Retrieved Matter . | . . . Parts Self-Destructed 7 | . . 7 Prevented . | . . . Parts Restored . | . . . Kills | -11 -10 -10 ------- Run | Yrd Mat Sub Combat Hostiles Destroyed 32 | . 15 17 Guns 17 | . 14 3 Cannons 5 | . . 5 AOE 9 | . . 9 Classes Destroyed 9 | 1 4 4 Tunneler 1 | 1 . . Hauler 2 | . 2 . Turret 1 | . . 1 Watcher 3 | . 3 . Swarmer 10 | . 6 4 Grunt 10 | . 9 1 Sentry 1 | . . 1 Artisan 1 | . . 1 Subdweller 11 | . . 11 Best Kill Streak 5 | 1 5 4 Combat Bots Only 4 | . 4 4 Max Kills in Single Turn 3 | 1 2 3 Gunslinging 1 | . 1 . Exploded 3 | . . 3 Melee . | . . . Uniques/NPCs Destroyed . | . . . Combat | -11 -10 -10 -------- Run | Yrd Mat Sub Hostile Shots Fired 138 | . 48 90 Missed 39 | . 12 27 Hits 99 | . 36 63 Projectile 99 | . 36 63 Critical Strikes 2 | . . 2 Damage Taken 1468 | . 410 1058 Core 271 | . 92 179 Absorbed by Shields . | . . . Regen/Repaired (Parts) 538 | . 538 . Core Remaining (%) 100 | 100 . . Volleys Fired 110 | 2 42 66 Largest 2 | 2 2 2 Hottest 90 | 60 80 90 Shots Fired 177 | 4 79 94 Gun 110 | 4 79 27 Cannon 45 | . . 45 Launcher 22 | . . 22 Special . | . . . Kinetic 79 | 2 18 59 Thermal 23 | . 6 17 Explosive 15 | . . 15 Electromagnetic 60 | 2 55 3 Robot Hit Streak 10 | 1 10 9 Robot Miss Streak 4 | 3 4 3 Penetration Max . | . . . Secondary Targets 1 | . 1 . Max Gunslinging Chain 1 | . 1 . Shots Hit Robots 89 | 1 44 44 Core Hits 61 | 1 27 33 Critical Kills . | . . . Critical Parts Destroyed . | . . . Critical Strikes 2 | . . 2 Destroy 1 | . . 1 Blast 1 | . . 1 Melee Attacks . | . . . Impact . | . . . Slashing . | . . . Piercing . | . . . Sneak Attacks . | . . . Combat Hostiles . | . . . Follow-up Attacks . | . . . Damage Inflicted 2278 | 10 637 1631 Guns 948 | 10 637 301 Cannons 357 | . . 357 Explosions 973 | . . 973 Melee . | . . . Ramming . | . . . Kinetic 993 | 10 106 877 Thermal 136 | . 49 87 Explosive 636 | . . 636 Electromagnetic 513 | . 482 31 Impact . | . . . Slashing . | . . . Piercing . | . . . Highest Corruption . | . . . Average Corruption . | . . . Corruption Purged . | . . . Corruption Blocked . | . . . Overload Shots . | . . . Overflow Damage 12 | . . 12 Projectiles . | . . . Explosions 12 | . . 12 Melee . | . . . Knockbacks 5 | . . 5 Impact . | . . . Kinetic 4 | . . 4 Secondary 1 | . . 1 Self-Inflicted Damage 128 | . . 128 Shots 5 | . . 5 Rammed . | . . . Targets Rammed . | . . . Kicked . | . . . Crushed . | . . . Highest Temperature 102 | . 102 3 Average Temperature 27 | . 27 3 Received Heat Transfer 384 | . 183 201 Siege Activations . | . . . Martial Activations . | . . . Shielding Activations . | . . . Robots Disrupted . | . . . Combat Hostiles . | . . . Robots Corrupted 1 | . 1 . Combat Hostiles 1 | . 1 . Parts Fried . | . . . Impact Corruptions . | . . . Robots Melted . | . . . Combat Hostiles . | . . . Parts Melted 1 | . 1 . Heat Transferred 333 | . 148 185 Parts Sabotaged . | . . . Parts Stolen . | . . . Parts Stripped . | . . . Power Chain Reactions . | . . . Alert | -11 -10 -10 ------- Run | Yrd Mat Sub Maximum Alert Level 1 | . 1 . Low Security (%) 97 | 100 97 . Level 1 2 | . 2 . Level 2 . | . . . Level 3 . | . . . Level 4 . | . . . Level 5 . | . . . High Security . | . . . Max Security . | . . . Peak Influence 213 | 5 213 . Initial 3 | . 3 . Average 67 | . 69 . Influence Increases 794 | 5 529 260 Destroy 0b10 Robot/C 440 | . 300 140 Destroy 0b10 Robot/NC 30 | 5 25 . Destroy Leader 70 | . 70 . Trap Triggered on 0b10 10 | . 10 . Successful Hack 64 | . 64 . Select Force Hacks 30 | . 30 . Disable Machine 30 | . 30 . Lose Combat Pursuer 120 | . . 120 Influence Decreases 794 | . 534 260 Entered New Map 2 | . 2 . Time Decay 746 | . 512 234 Lost Part 46 | . 20 26 Squads Dispatched 2 | . 2 . Investigation 2 | . 2 . Extermination . | . . . Reinforcement . | . . . Assault . | . . . Garrison . | . . . Intercept . | . . . Searches Triggered . | . . . Construction Impeded . | . . . Haulers Reinforced . | . . . Active Scanning Responses . | . . . Cargo Convoy Interrupts . | . . . Stealth | -11 -10 -10 --------- Run | Yrd Mat Sub Distress Signals 2 | . 2 . Communications Jammed . | . . . Distress Signals . | . . . Times Spotted 54 | . 26 28 Peak Tracking Total 6 | . 6 6 Tactical Retreats 5 | . . 5 Traps | -11 -10 -10 ------- Run | Yrd Mat Sub Traps Triggered . | . . . Indirectly . | . . . Trap Hack Attempts . | . . . Triggered . | . . . Disarmed . | . . . Reprogrammed 4 | . 4 . Reused 1 | . 1 . Traps Extracted . | . . . Installed . | . . . Triggered 1 | . 1 . Machines | -11 -10 -10 ---------- Run | Yrd Mat Sub Machines Disabled 5 | . 2 3 Max in Single Turn 1 | . 1 1 Machines Repaired . | . . . Machines Dismantled . | . . . Machines Sabotaged . | . . . Overloaded Fab Kills . | . . . Hacking | -11 -10 -10 --------- Run | Yrd Mat Sub Machines Accessed 14 | . 11 3 Terminals 8 | . 8 . Fabricators . | . . . Repair Stations 1 | . 1 . Recycling Units 2 | . 2 . Scanalyzers . | . . . Garrison Access . | . . . Total Hacks 64 | . 60 4 Successful 38 | . 34 4 Failed 26 | . 26 . Catastrophic 5 | . 5 . Database Lockouts . | . . . Manual 42 | . 42 . Terminals 41 | . 41 . Fabricators . | . . . Repair Stations 8 | . 8 . Recycling Units 11 | . 11 . Scanalyzers . | . . . Garrison Access . | . . . Terminal Hacks 17 | . 13 4 Record 1 | . . 1 Part Schematic 3 | . 3 . Robot Schematic 1 | . 1 . Robot Analysis 4 | . 4 . Prototype ID Bank 1 | . 1 . Open Door 1 | . . 1 Branch Access Points 1 | . 1 . Terminal Index 1 | . 1 . Reprogram Traps 1 | . 1 . Patrol Status 1 | . 1 . Proto ID Catalog 1 | . . 1 Release Object 1 | . . 1 Fabricator Hacks . | . . . Repair Station Hacks 8 | . 8 . Scan Component 4 | . 4 . Repair 4 | . 4 . Recycling Unit Hacks 2 | . 2 . Report Inventory 1 | . 1 . Retrieve Components 1 | . 1 . Scanalyzer . | . . . Garrison Access Hacks . | . . . Unauthorized Hacks 11 | . 11 . Terminals 7 | . 7 . Assimilate 2 | . 2 . Botnet 3 | . 3 . Operators 2 | . 2 . Fabricators . | . . . Repair Stations . | . . . Recycling Units 4 | . 4 . Reject 1 | . 1 . Mask 2 | . 2 . Tunnel 1 | . 1 . Scanalyzers . | . . . Garrison Access . | . . . Data Cores Recovered . | . . . Used . | . . . Hacking Detections 11 | . 11 . Full Trace Events 1 | . 1 . Feedback Events . | . . . Feedback Blocked . | . . . Robot Schematics Acquired 1 | . 1 . Robots Built . | . . . Authchips . | . . . Time . | . . . Total Robot Build Rating . | . . . Part Schematics Acquired 3 | . 3 . Parts Built . | . . . Authchips . | . . . Time . | . . . Total Part Build Rating . | . . . Part Studies Acquired . | . . . Parts Repaired 4 | . 4 . Time 104 | . 104 . Parts Recycled . | . . . Recycled Matter . | . . . Retrieved Matter . | . . . Retrieved Components 9 | . 9 . Parts Scanalyzed . | . . . Part Schematics Acquired . | . . . Parts Damaged . | . . . Bothacking | -11 -10 -10 ------------ Run | Yrd Mat Sub Used RIF Installer . | . . . Robots Hacked . | . . . Non-combat . | . . . Combat . | . . . Robot Hacks Applied . | . . . Relay Couplers Released . | . . . Fabnet Peak Effective % . | . . . Robots Rewired . | . . . Allies Hacked . | . . . Hacks Repelled . | . . . Allies | -11 -10 -10 -------- Run | Yrd Mat Sub Total Allies 1 | . 1 . Largest Group 1 | . 1 1 Highest-Rated Group 10 | . 10 10 Highest-Rated Ally 10 | . 10 10 Total Orders 8 | . 1 7 STAY 5 | . 1 4 FOLLOW 3 | . . 3 Ally Attacks . | . . . Total Damage . | . . . Kills . | . . . Allies Corrupted . | . . . Allies Melted . | . . . Intel | -11 -10 -10 ------- Run | Yrd Mat Sub Active Infowar (turns) 741 | 7 346 388 Optics 388 | . . 388 Terrain 353 | 7 346 . Robot Analysis Total 4 | . 4 . Derelict Logs Recovered 1 | . . 1 Drone Launches . | . . . Drone Recoveries . | . . . Exploration | -11 -10 -10 ------------- Run | Yrd Mat Sub Turns Passed 3963 | 72 1965 1926 Spaces Moved 2499 | 45 1222 1232 Core 7 | 7 . . Treads . | . . . Legs 1484 | 38 1222 224 Wheels 1008 | . . 1008 Hover . | . . . Flight . | . . . Fastest Speed 50 | 50 120 110 Average Speed 129 | 110 123 137 Slowest Speed 260 | 190 190 260 Overloaded Moves . | . . . Propulsion Burnouts . | . . . Robots Hopped . | . . . Potential Cave-ins . | . . . Cave-ins Triggered . | . . . Exploration Rate (%) 54 | 3 99 61 Regions Visited 2 Branch Regions 1 Pre-discovered Areas 1 | . 1 . Known Exits Taken . | . . . Unknown Exits Taken 2 | 1 1 . Scrap Searched 2 | . . 2 Spaces Dug 50 | . . 50 Terrain Destroyed 182 | . . 182 Melee . | . . . Projectile . | . . . AOE 182 | . . 182 Terrain Rammed . | . . . Walls Destroyed . | . . . Machines Disabled . | . . . Actions | -11 -10 -10 --------- Run | Yrd Mat Sub Total 3046 | 59 1605 1382 Wait 316 | . 306 10 Move 2497 | 44 1221 1232 Hop . | . . . Pick Up 42 | 6 13 23 Fast Attach 13 | 7 2 4 Attach 7 | . 2 5 Detach . | . . . Swap 25 | . 9 16 Drop 36 | . 10 26 Fire 110 | 2 42 66 Melee . | . . . Ram . | . . . Kick . | . . . Crush . | . . . Escape Stasis . | . . . Rewire . | . . . Trap . | . . . Miscellaneous . | . . . Route ------- -11/Scrapyard -10/Materials (discovered 6 exits: [*Mat x3] / *Min x2 / *Sub) -10/Subcaves (discovered 3 exits: [*Mat x2] / [*Rec]) History --------- Turn | Location | Event 17 | -11/Scrapyard | Discovered new exit (range 16) 73 | -11/Scrapyard | Entered Materials 84 | -10/Materials | Discovered new exit (range 15) 306 | -10/Materials | Discovered new exit (range 8) 310 | -10/Materials | Build established: Mutant 491 | -10/Materials | Discovered new exit (range 16) 722 | -10/Materials | Identified exit to Mines 811 | -10/Materials | Discovered new exit (range 10) 1347 | -10/Materials | Discovered new exit (range 8) 1729 | -10/Materials | Repaired EM Pulse Gun 1756 | -10/Materials | Repaired Hcp. Storage Unit 1783 | -10/Materials | Repaired Beam Cannon 1810 | -10/Materials | Repaired Lgt. Cannon 2038 | -10/Materials | Entered Subcaves 2038 | -10/Subcaves | Accompanied by 1 ally 2517 | -10/Subcaves | Core integrity fell below 50% 2529 | -10/Subcaves | Discovered new exit (range 14) 2833 | -10/Subcaves | Found SUBCON Basin 2930 | -10/Subcaves | Discovered new exit (range 9) 3025 | -10/Subcaves | Discovered new exit (range 10) 3043 | -10/Subcaves | Disturbed a concealed Subdweller 3523 | -10/Subcaves | Ambushed by Subdweller buried in earth 3544 | -10/Subcaves | Core integrity fell below 20% 3587 | -10/Subcaves | Lost 4 parts (1p1n1u1w) 3700 | -10/Subcaves | Visited 4L-MR0's lab 3719 | -10/Subcaves | Found Gun Armor 3947 | -10/Subcaves | A swath of the cavern ceiling suddenly collapsed 3956 | -10/Subcaves | Ambushed by Subdweller buried in earth 3964 | -10/Subcaves | Destroyed by UK-V1H(R) with Subdweller Machine Gun Last Messages --------------- Gun Armor Tower Shield Power Bank Rainbow Chip VL-GR5's Exoskeleton "Deathgrip" Powered Cannon 03709_ 4L-MR0 mumbles to no one in particular: "Damn Subs sneaking around stealing my stuff." 03715_ Testing Chamber breached. 03719_ Acquired Gun Armor. 03820_ DZ-B74(R) destroyed. 03820_ IC-MGW(R) destroyed. 03838_ Acquired 6 matter. 03841_ Acquired Sub. Laser. 03843_ Acquired 10 matter. 03846_ Acquired Sub. Optics. A swath of the cavern ceiling suddenly collapses. 03956_ Sub. Optics destroyed. 03956_ Destroyed Sub. Optics. 03957_ UK-V1H(R): "ARGHSUB!" Map ----- +----------------------------------------------------+ | ##????????????????????????????# ! # #? | | #????????????? #?????????????# " "## ##? | | #???????????? #?????????????##### ### ## | | #???????????# #??????????????????## ### # # | | # #####??????# #???????????????????## | | ### ##????# ##??????????????????# #### | | ### #### ##?????????????????# ####??## | | #?????????????????## #??????? | | #?????????????????# #??????? | | #?????????????????# #??????? | | # ## ##????????????????# #??????? | | # ""# #????????????????# #??????? | | # " #????????????????# ?#?????? | | # #?????????####?# #?????? | | # ## ##?????????? #??# ##???# | | # "##?? ###??????????? ##?? ???? | | # ##???# #????????????? ### #????? | | # #????? ???????????? # ##????#" | | # ##?????? ??????????? ????? | | # " #????????? ??????????## ??????## | | #### ##???###??????###??### ## ????????# | | ??# ##??# ##?????# ### ## "## #?#########"" | | ### #### #######;;;;;;##""##??#""" "## " | | ## ;; ; #;;;#???#" ##"" | | # #???#" ##"" | | ## ### @ ## #??##" "" | | #### ### ;R;;;;#####??#< | | ##??## ## ### ####??????##"" " | | ######## ## #??###??????????#" ## | | ??# ### ####???????????????# #### | | ??# ###?###??????????????????#"" "#??? | | ??## ##????????????????????????########??? | | ???## ######??????????????????????????????? | | ????# ## #??????????????????????????????? | | ????# #??????????????????????????????? | | ????## ### ## ##??????????????????????????????? | | ?????###??########???????????????????????????????? | | ?????????????????????????????????????????????????? | | ?????????????????????????????????????????????????? | | ?????????????????????????????????????????????????? | | ?????????????????????????????????????????????????? | | ?????????????????????????????????????????????????? | | ?????????????????????????????????????????????????? | | ?????????????????????????????????????????????????? | | ?????????????????????????????????????????????????? | | ?????????????????????????????????????????????????? | | ?????????????????????????????????????????????????? | | ?????????????????????????????????????????????????? | | ?????????????????????????????????????????????????? | | ?????????????????????????????????????????????????? | +----------------------------------------------------+ Best States ------------- Heat Dissipation 35 Energy Generation 15 Energy Capacity 250 Matter Stores 300 Matter Capacity 300 Sight Range 21 Terrain Scan Range 16 Terrain Scan Density 10 Armor Coverage 150 Evasion (%) 55 Targeting Accuracy 5 Recoil Reduction 1 Item Schematics ----------------- Hcp. Storage Unit | -10/Materials | Hacked Hcp. Matter Pod | -10/Materials | Hacked Hcp. Battery | -10/Materials | Hacked Robot Schematics ------------------ O-16 Technician | -10/Materials | Hacked Fabricated ------------ Nothing Repaired ---------- EM Pulse Gun | 6% | -10/Materials Hcp. Storage Unit | 30% | -10/Materials Beam Cannon | 25% | -10/Materials Lgt. Cannon | 40% | -10/Materials Studied --------- None Alien Tech Used ----------------- None Achievements -------------- Bumper Bots Do Not Disturb Challenges ------------ None Game ------ Seed ConstructSniperMegashotty Manual? 0 Play Time 00:35:29 Cumulative 663.5 hours Start 2025.11.02 @ 03:09:46 End 2025.11.02 @ 03:46:41 Sessions 1 Manual Loads 0 Difficulty Rogue Special Mode None Game No. 453 Rogue 453 Adventurer 0 Explorer 0 Win Type - Total 1 Types 1/0/0/0/0/0/0/0/0/0 Lore% 51 Gallery% 65 Achievement% 36 Wizard Run 0 Options --------- Layout 1 ASCII 0 Keyboard 0 Movement Mouse Keybinds 0 Fullscreen 1 Font 20/SmallcapsGlow Map View 54x42 Zoom Use 0% Tactical HUD 1 Map Filters NONE Filters NONE Steam 1 RUN: 273c694b-a110-418c-af0a-cbbc5df6eb9e